[Event "VIII Open Semana Santa 2024"]
[Site "San Vicente del Raspeig"]
[Date "2024.03.28"]
[Round "2.7"]
[White "Palozza, Christian"]
[Black "Makhnev, Denis"]
[Result "0-1"]
[ECO "A40"]
[WhiteElo "2251"]
[BlackElo "2516"]
[Annotator "TA"]
[PlyCount "86"]
[EventDate "2024.03.27"]
[EventType "swiss"]
[EventCountry "ESP"]
[SourceTitle "playchess.com"]
[Source "ChessBase"]
[SourceQuality "1"]
[TimeControl "5400+30"]

{[%evp 9,86,10,8,21,18,19,4,9,2,-12,-14,-26,-14,-46,-33,-22,-23,-42,-33,-44,-40,-45,-13,-17,-20,-12,-11,-11,-8,-8,-5,-35,-12,-20,-18,-25,-12,-64,-80,-82,-62,-119,-125,-133,-132,-141,-154,-191,-208,-279,-174,-174,-174,-213,-171,-253,-128,-249,-246,-263,-266,-428,-415,-634,-353,-415,-426,-440,-429,-426,-446,-572,-551,-531,-522,-685,-680,-641,-635]} 1. d4 {[%emt 0:03:34]} g6 {[%emt 0:00:08]} 2. c4 {[%emt 0:00:28]} Bg7 {[%emt 0:00:06]} 3. g3 {[%emt 0:00:17]} c5 {[%emt 0:00:12]} 4. dxc5 {[%emt 0:01:23]} Qc7 {[%emt 0:00:25]} 5. Bg2 {[%emt 0:05:03]} Qxc5 {[%emt 0:00:25]} 6. Qa4 {[%emt 0:01:37]} Nc6 {[%emt 0:00:56][%cal Bb8c6,Bc6a5,Ba5c4][%mdl 32]} 7. Nc3 {[%emt 0:10:43]} Bxc3+ {[%emt 0:05:10]} 8. bxc3 {[%emt 0:00:53] The position is equal.} Nf6 {[%emt 0:00:06]} 9. Qb5 {[%emt 0:04:57]} Qxb5 {[%emt 0:02:04]} 10. cxb5 {[%emt 0:00:05]} Na5 {[%emt 0:00:05]} 11. Ba3 {[%emt 0:07:27]} d6 {[%emt 0:06:32]} 12. Bb4 {[%emt 0:07:48]} Nc4 {[%emt 0:00:09]} 13. a4 {[%emt 0:00:16]} a6 {[%emt 0:11:41]} 14. bxa6 {[%emt 0:01:27]} Rxa6 {[%emt 0:01:11]} 15. Nf3 {[%emt 0:04:27]} Be6 {[%emt 0:01:38][%cal Bc8e6,Be6d5,Bd5c6][%mdl 32]} 16. Nd2 {[%emt 0:03:18]} Nxd2 {[%emt 0:00:32]} 17. Kxd2 {[%emt 0:00:13]} Bd5 {[%emt 0:00:06]} 18. f3 {[%emt 0:02:28]} Bc6 {[%emt 0:05:48][%cal Of6d7]} 19. a5 {[%emt 0:02:08]} g5 {[%emt 0:00:07]} 20. Ke3 {[%emt 0:10:35]} h5 {[%emt 0:03:12]} 21. Kf2 {[%emt 0:00:45]} h4 {[%emt 0:00:50]} 22. Rhe1 {[%emt 0:01:01]} g4 {[%emt 0:00:55]} 23. gxh4 {[%emt 0:13:08] White is weak on the light squares} (23. Rad1 $11) 23... Rxh4 $15 {[%emt 0:03:31] White is now going downhill.} 24. Kg3 {[%emt 0:00:45]} Rh6 {[%emt 0:00:29] Black is more active.} 25. fxg4 {[%emt 0:03:11]} (25. Rad1 $15) 25... Bxg2 $17 {[%emt 0:03:10]} 26. Kxg2 {[%emt 0:00:02]} Nxg4 {[%emt 0:00:08]} 27. e4 {[%emt 0:00:08]} Kd7 {[%emt 0:00:29]} (27... Rxh2+ $2 {is the wrong capture.} 28. Kg3 $18) ({But not} 27... Nxh2 28. Rh1 Ng4 29. Rxh6 Nxh6 30. Kf3) 28. h3 {[%emt 0:04:29]} Ne5 {[%emt 0:00:27]} 29. Rad1 {[%emt 0:01:43]} Ra8 {[%emt 0:00:20] [#] Hoping for ...Rg8+.} 30. Re3 {[%emt 0:00:40]} Rh4 {[%emt 0:00:44]} 31. Rd4 {[%emt 0:03:19]} Rah8 {[%emt 0:00:36]} 32. Ba3 {[%emt 0:02:21]} (32. Bc5 $142) 32... Ng6 {[%emt 0:03:39]} ({Better is} 32... f5 $19 {...f4 is the strong threat.} 33. exf5 Nc4 34. Rxc4 Rxc4) 33. e5 {[%emt 0:02:59] [#]} (33. Rb4 $17) 33... Nxe5 $1 $19 {[%emt 0:00:15][%mdl 512]} 34. Rxh4 {[%emt 0:00:03]} (34. Bc1 f6) 34... Rxh4 {[%emt 0:00:05][%mdl 4096] Endgame. KRB-KRN} 35. Bb4 $2 {[%emt 0:00:39]} (35. Re2) 35... f5 {[%emt 0:00:40]} 36. Kg3 {[%emt 0:00:45]} (36. Re1 $142) 36... Ng6 {[%emt 0:00:28] Threatens to win with ...f4+.} 37. Re1 {[%emt 0:00:37]} f4+ {[%emt 0:01:43]} 38. Kg2 {[%emt 0:00:10] Black is clearly winning.} Ne5 {[%emt 0:00:06]} 39. Rd1 {[%emt 0:00:34]} Ke6 {[%emt 0:01:00]} 40. Rb1 {[%emt 0:00:30]} Nc4 {[%emt 0:00:34]} 41. Re1+ {[%emt 0:00:33]} Ne3+ {[%emt 0:00:26]} 42. Kf3 {[%emt 0:00:19]} Kf5 {[%emt 0:00:34]} (42... Rxh3+ 43. Kxf4 Kd5 44. Kg5 $19) 43. Rh1 {[%emt 0:00:10]} Nc4 {[%emt 0:00:06] Weighted Error Value: White=0.37/Black=0.22 (precise) .  Mistake:       	White=6     	Black=1      Inaccurate:     	White=4     	Black=3      OK:         	White=11    	Black=13     Best:        	White=1     	Black=2      Brilliant:      	---       	Black=1} 0-1

[Event "VIII Open Semana Santa 2024"]
[Site "San Vicente del Raspeig"]
[Date "2024.03.28"]
[Round "2.8"]
[White "Basso, Pier Luigi"]
[Black "Lever, Erwan"]
[Result "1-0"]
[ECO "B41"]
[WhiteElo "2503"]
[BlackElo "2245"]
[Annotator "TA"]
[PlyCount "49"]
[EventDate "2024.03.27"]
[EventType "swiss"]
[EventCountry "ESP"]
[SourceTitle "playchess.com"]
[Source "ChessBase"]
[SourceQuality "1"]
[TimeControl "5400+30"]

{[%evp 14,49,56,24,48,15,47,8,22,8,17,11,20,23,66,59,59,20,13,10,54,32,25,24,46,18,19,12,43,38,57,70,54,88,539,547,479,415]} 1. e4 {[%emt 0:02:47]} c5 {[%emt 0:01:30]} 2. Nf3 {[%emt 0:00:12]} e6 {[%emt 0:00:19]} 3. d4 {[%emt 0:00:21]} cxd4 {[%emt 0:00:09]} 4. Nxd4 {[%emt 0:00:06]} a6 {[%emt 0:00:06]} 5. c4 {[%emt 0:00:08]} Nf6 {[%emt 0:05:35]} 6. Nc3 {[%emt 0:00:05]} Qc7 {[%emt 0:00:08]} 7. a3 {[%emt 0:00:06]} b6 {[%emt 0:00:08]} 8. Bd3 {[%emt 0:01:19]} Bd6 {[%emt 0:05:04][%cal Ob8c6]} 9. h3 {[%emt 0:06:13]} Nc6 {[%emt 0:00:48]} 10. Nxc6 {[%emt 0:00:20]} dxc6 {[%emt 0:00:18][%cal Bd7c6,Bc6c5][%mdl 32] The position is equal.} 11. Be3 {[%emt 0:01:59]} c5 {[%emt 0:12:59]} 12. O-O {[%emt 0:02:41]} Be5 {[%emt 0:01:37]} 13. Ne2 {[%emt 0:03:28]} Bb7 {[%emt 0:09:10]} (13... Bxb2 $2 14. Rb1 Be5 (14... Bxa3 $2 15. Qa4+ b5 16. cxb5 $18) 15. f4 $18) 14. f4 {[%emt 0:08:14]} Bd4 {[%emt 0:00:24]} 15. Nxd4 {[%emt 0:03:40]} cxd4 {[%emt 0:05:41]} 16. Bxd4 {[%emt 0:00:05] Black must now prevent Qa4+.} Rd8 {[%emt 0:04:10][%cal Ba8d8,Bd8d4,Bd4e4][%mdl 32]} 17. Bxf6 {[%emt 0:01:34]} gxf6 {[%emt 0:00:10]} 18. Qe2 {[%emt 0:01:09]} Rg8 {[%emt 0:01:30][%cal Of6f5]} 19. Rad1 {[%emt 0:04:50]} f5 {[%emt 0:03:13]} 20. b4 {[%emt 0:06:21]} (20. exf5 $2 Rxg2+ 21. Qxg2 Bxg2 22. Kxg2 b5 $19) 20... Rd4 {[%emt 0:08:12][%cal Rf5e4]} 21. Qf2 {[%emt 0:06:26]} (21. exf5 $2 {too greedy.} Bxg2 (21... Rxf4 $2 22. Rxf4 Rxg2+ 23. Qxg2 $19) (21... Rxg2+ $2 22. Qxg2 Bxg2 23. Kxg2 $19) 22. Qxg2 Rxg2+ 23. Kxg2 Qc6+ (23... Rxf4 $2 24. fxe6 fxe6 25. Rxf4 $19) 24. Kg1 exf5 25. Rde1+ Kf8 $19) 21... Bxe4 {[%emt 0:05:11]} 22. Bxe4 {[%emt 0:00:05]} ({Much worse is} 22. Qxd4 Rxg2+ 23. Kh1 Rd2+ 24. Kg1 Rg2+ 25. Kh1 Rd2+ 26. Kg1 Rg2+ $11) 22... Rxe4 {[%emt 0:00:07]} 23. c5 {[%emt 0:00:08]} Qb7 {[%emt 0:12:14][%mdl 8192] [#]} (23... bxc5 $16 24. bxc5 Rg6) 24. Rd2 $1 $18 {[%emt 0:04:25] Threatens to win with Rfd1.} ({Weaker is} 24. cxb6 Rxf4 25. Qc2 Qxb6+ 26. Kh1 Rxf1+ 27. Rxf1 Rg3 28. Qc8+ Ke7 $15) 24... bxc5 {[%emt 0:02:28]} 25. Qxc5 {[%emt 0:03:53] Weighted Error Value: White=0.10 (very precise) /Black=0.52.  Loses game:     	---       	Black=1      Inaccurate:     	White=4     	Black=3      OK:         	White=8     	Black=4      Best:        	White=1     	---        Strong:       	White=1     	---} 1-0

[Event "VIII Open Semana Santa 2024"]
[Site "San Vicente del Raspeig"]
[Date "2024.03.28"]
[Round "2.9"]
[White "Real, Thibault"]
[Black "Diaz Camallonga, Carles"]
[Result "0-1"]
[ECO "C02"]
[WhiteElo "2242"]
[BlackElo "2491"]
[Annotator "TA"]
[PlyCount "178"]
[EventDate "2024.03.27"]
[EventType "swiss"]
[EventCountry "ESP"]
[SourceTitle "playchess.com"]
[Source "ChessBase"]
[SourceQuality "1"]
[TimeControl "5400+30"]

{[%evp 17,178,0,0,0,10,10,13,0,23,3,47,45,52,0,37,8,41,0,0,0,0,-68,-68,-58,38,37,55,57,85,62,53,59,63,58,54,57,137,97,109,127,190,118,117,127,101,104,178,158,183,0,0,0,84,80,89,0,-14,0,53,0,41,10,19,11,7,1,21,14,18,11,72,76,74,43,69,42,59,55,55,56,58,20,463,207,221,199,270,261,315,302,340,0,171,0,360,354,357,350,489,376,364,334,349,291,545,537,554,537,647,639,448,178,207,204,203,173,168,0,0,0,0,0,0,0,0,-16,-16,-14,-14,-14,-14,-14,-14,-28,-28,-27,-8,-442,-43,-40,-32,-52,-56,-43,-47,-67,-67,-67,-62,-67,-67,-67,-67,-67,-67,-65,-65,-64,-65,-29977,-29978,-29982,-29983]} 1. e4 {[%emt 0:00:14]} e6 {[%emt 0:00:24]} 2. d4 {[%emt 0:00:08]} d5 {[%emt 0:00:07]} 3. e5 {[%emt 0:00:05]} c5 {[%emt 0:00:18]} 4. c3 {[%emt 0:00:07]} Nc6 {[%emt 0:00:06]} 5. Nf3 {[%emt 0:00:05]} Bd7 {[%emt 0:00:28]} 6. Be2 {[%emt 0:01:12]} Nge7 {[%emt 0:00:40]} 7. Na3 {[%emt 0:00:40]} cxd4 {[%emt 0:07:52]} 8. cxd4 {[%emt 0:00:12]} Nf5 {[%emt 0:00:03]} 9. Nc2 {[%emt 0:00:14]} Be7 {[%emt 0:07:43]} 10. O-O {[%emt 0:09:30]} O-O {[%emt 0:03:04]} 11. Bd3 {[%emt 0:00:12]} f6 {[%emt 0:01:38]} 12. Bf4 {[%emt 0:00:22] The position is equal.} g5 {[%emt 0:17:57]} 13. exf6 {[%emt 0:08:28]} gxf4 {[%emt 0:06:05]} 14. fxe7 {[%emt 0:05:18]} Qxe7 {[%emt 0:00:04]} 15. Re1 {[%emt 0:13:45]} (15. b4 $14) 15... Nh4 {[%emt 0:04:55]} 16. Bb5 {[%emt 0:03:09]} Rf5 {[%emt 0:07:00]} 17. b4 {[%emt 0:35:08]} Raf8 {[%emt 0:04:20]} 18. a4 {[%emt 0:01:09]} Kh8 {[%emt 0:05:07] Hoping for ...Rg8.} 19. Bf1 {[%emt 0:06:05]} (19. Bxc6 $11 Bxc6 20. Nxh4 Qxh4 21. Re5) 19... Rg8 $1 $15 {[%emt 0:05:31][%cal Oh4g2] White must now prevent ...Nxg2! Black has more active pieces.} (19... Nxb4 $2 20. Nxh4 Qxh4 21. Nxb4 $18) 20. b5 {[%emt 0:01:28]} Nd8 {[%emt 0:27:08]} ({Black should try} 20... Nxg2 $1 $15 21. Bxg2 Qg7) 21. Re5 {[%emt 0:01:22]} Rff8 {[%emt 0:00:00]} 22. Nce1 {[%emt 0:06:49]} Nf7 {[%emt 0:00:00]} 23. Rh5 {[%emt 0:00:10]} Nxf3+ {[%emt 0:00:00]} 24. Nxf3 {[%emt 0:00:11]} Be8 {[%emt 0:00:00]} 25. Qe1 $40 {[%emt 0:04:54][%mdl 128] Rxd5 is the strong threat. Black needs to defend precisely.} Qf6 {[%emt 0:00:00]} 26. Rc1 {[%emt 0:01:52]} h6 {[%emt 0:00:00]} (26... Rg7 $14) 27. Ne5 {[%emt 0:00:30]} Ng5 {[%emt 0:00:00]} 28. Rh4 {[%emt 0:00:19]} (28. Ng4 Nf3+ (28... Qxd4 $2 29. Rxh6+ Kg7 30. Rd1 $18) 29. Kh1 Rxg4 $17 (29... Nxe1 30. Nxf6 Bxh5 31. Nxg8 $15)) 28... Ne4 {[%emt 0:00:00]} (28... Rg7 $16 29. Rc8 Kg8) 29. Rh3 {[%emt 0:00:12]} (29. f3 $18 Nd6 30. Nd3) 29... Rg7 $16 {[%emt 0:00:00]} 30. f3 {[%emt 0:00:12]} (30. Rc8 {with more complications.} h5 31. Ra8 Qf5 32. Rb3) 30... Ng5 {[%emt 0:00:00]} 31. Rh4 {[%emt 0:00:02]} Kg8 {[%emt 0:00:08]} (31... Qxe5 $16 {keeps fighting.} 32. Rxh6+ (32. Qxe5 Nxf3+ 33. Kf2 Nxe5 $16) 32... Kg8 33. Qxe5 Nxf3+ 34. Kf2 Nxe5 35. dxe5 Bg6) 32. Kh1 {[%emt 0:01:00]} h5 {[%emt 0:00:05] Prevents Ng4.} 33. Qb4 $2 {[%emt 0:00:28]} (33. Qf2 $18) 33... Ne4 $11 {[%emt 0:01:32]} 34. Qe1 {[%emt 0:00:04] Wards off Nf2+} Nd6 {[%emt 0:00:42] [#]} (34... Ng5 $1 $11) 35. Nd3 $1 $16 {[%emt 0:00:24]} Qh6 {[%emt 0:00:35]} 36. Ne5 {[%emt 0:01:34] Dodges Nc4} (36. Rc5 $16) 36... Nf5 $11 {[%emt 0:00:33][%csl LRd4,LRh4]} 37. Rh3 {[%emt 0:00:21]} (37. Rc8 {looks sharper.} Qg5 38. Rh3 a6 39. bxa6 bxa6 40. Qb1) 37... Qf6 {[%emt 0:00:17]} (37... Nxd4 $11 38. Qc3 Nf5) 38. Qb4 {[%emt 0:00:50]} (38. Qd2 $14) 38... Qe7 {[%emt 0:00:20]} 39. Qxe7 {[%emt 0:00:30]} (39. Qb2 {is more complex.} Qg5 40. Re1 Ne3 41. Qf2) 39... Rxe7 {[%emt 0:00:04]} 40. Bd3 {[%emt 0:00:23] Black should prevent Bxf5.} Nxd4 {[%emt 0:00:55]} 41. Bg6 {[%emt 0:00:01]} Kg7 {[%emt 0:01:47]} (41... Bxg6 $2 42. Nxg6 Rd7 43. Nxf8 Kxf8 44. Rc8+ (44. Rxh5 Nf5 $18) 44... Kg7 45. Rxh5 $18) 42. Bxe8 {[%emt 0:00:28]} (42. Bxh5 $2 Rf5 43. Bxe8 Rxe5 $19) 42... Rfxe8 {[%emt 0:00:04]} (42... Rf5 43. Rxh5 (43. Bxh5 Rxe5 44. Rh4 b6 $17) 43... Rxe8 44. Rc7+ Kg8 45. Nd7 (45. Rxf5 exf5 46. Rxb7 Rxe5 $19)) 43. Rxh5 {[%emt 0:00:26]} Nf5 {[%emt 0:00:04] Against Rh4} (43... Kf6 $11 {keeps the balance.}) 44. Nd3 $16 {[%emt 0:00:35]} Ne3 {[%emt 0:03:59]} 45. Nxf4 {[%emt 0:00:05]} e5 $1 {[%emt 0:00:03][%cal Be6e5,Be5e4][%mdl 32]} 46. Nd3 {[%emt 0:00:14]} Kg6 {[%emt 0:00:07] Against h4} 47. g4 {[%emt 0:00:36]} e4 $1 {[%emt 0:01:10]} 48. Nf4+ {[%emt 0:00:08]} Kg7 $1 {[%emt 0:00:04]} 49. fxe4 {[%emt 0:02:01]} dxe4 {[%emt 0:00:09][%mdl 8192]} (49... Rxe4 $11 {and Black has nothing to worry.} 50. Rc7+ (50. Nxd5 Nxd5 51. Rxd5 Rxg4 $14) 50... Kf6 51. g5+ (51. Nxd5+ Nxd5 52. Rxd5 Re1+ 53. Kg2 R1e2+ 54. Kg1 Re1+ 55. Kg2 R1e2+ 56. Kg1 Re1+ 57. Kg2 $11) 51... Ke5) 50. Rcc5 {[%emt 0:00:18]} (50. Rh3 $142) 50... Kg8 $18 {[%emt 0:00:24]} 51. h3 {[%emt 0:00:55]} Rg7 {[%emt 0:00:29]} (51... Rf7 {was necessary.}) 52. Rhe5 {[%emt 0:00:13]} Rge7 {[%emt 0:01:07]} 53. Rg5+ {[%emt 0:00:02]} Rg7 {[%emt 0:00:15]} 54. Rge5 {[%emt 0:00:19]} (54. Rxg7+ $142 Kxg7 55. Rc3) 54... Rge7 {[%emt 0:00:04]} 55. Rg5+ {[%emt 0:00:06]} (55. Rxe7 Rxe7 56. Kh2) 55... Rg7 $1 {[%emt 0:00:03]} 56. Rxg7+ {[%emt 0:00:37]} Kxg7 {[%emt 0:00:05][%mdl 4096] Endgame. KRN-KRN} 57. Kg1 {[%emt 0:01:04]} b6 {[%emt 0:00:59]} 58. Rc7+ {[%emt 0:00:28]} Kf6 {[%emt 0:00:04]} 59. Kf2 {[%emt 0:00:14]} (59. Rxa7 Rc8 60. Kf2 Rc3) 59... Nd1+ {[%emt 0:00:07]} 60. Ke2 {[%emt 0:00:11]} Nb2 {[%emt 0:00:06]} (60... Kg5 61. Ng2 (61. Kxd1 Kxf4 62. Rxa7 Rh8 $18) (61. Rxa7 Nc3+ 62. Ke3 Nd1+ 63. Ke2 Nc3+ 64. Ke3 Nd1+ 65. Ke2 $11) 61... Rd8) 61. h4 {[%emt 0:00:38]} Nxa4 {[%emt 0:00:23]} 62. g5+ {[%emt 0:00:43]} Ke5 {[%emt 0:00:09]} 63. Ke3 {[%emt 0:00:17]} ({Inferior is} 63. Rxa7 Nc3+ 64. Ke3 (64. Kd2 Kxf4 65. Kxc3 e3 $11) 64... Nd1+ 65. Ke2 Nc3+ 66. Ke3 (66. Kd2 Kxf4 67. Kxc3 e3 $11) 66... Nd1+ 67. Ke2 Nc3+ $11) 63... Nb2 {[%emt 0:00:31]} 64. Ng6+ $2 {[%emt 0:01:28]} (64. Rxa7 $2 {perishes.} Nc4+ 65. Ke2 Kxf4 $19) (64. g6) 64... Kf5 {[%emt 0:00:03]} 65. Ne7+ {[%emt 0:00:13]} Ke6 {[%emt 0:00:05]} 66. Nc6 {[%emt 0:00:23]} Nc4+ {[%emt 0:00:06]} 67. Kd4 $2 {[%emt 0:01:05]} (67. Kxe4 Kd6+ 68. Kd4 Kxc7 $19) (67. Ke2 $18) 67... Nd6 $11 {[%emt 0:00:26]} 68. Nxa7 {[%emt 0:00:32]} Ra8 {[%emt 0:00:51]} 69. Ke3 {[%emt 0:00:21]} Rh8 {[%emt 0:00:16]} 70. Nc6 {[%emt 0:00:26] Strongly threatening Nd4+.} Rxh4 {[%emt 0:00:53]} 71. g6 {[%emt 0:00:43]} Rg4 {[%emt 0:00:23]} 72. g7 {[%emt 0:00:08]} Nf5+ {[%emt 0:00:06]} 73. Kf2 {[%emt 0:00:51]} Kd6 {[%emt 0:00:34]} 74. Rf7 {[%emt 0:00:27] aiming for Rf6+.} Nxg7 {[%emt 0:00:11]} 75. Ke3 {[%emt 0:00:31]} Kc5 {[%emt 0:02:25]} 76. Ne5 {[%emt 0:00:30]} Rg1 {[%emt 0:00:45]} 77. Rc7+ $2 {[%emt 0:00:29][%mdl 8192] [#]} (77. Nd7+ $11 Kxb5 78. Rf6) 77... Kxb5 $2 {[%emt 0:00:07]} ({Black should play} 77... Kd6 $1 $19 {[%cal Rd6c7]} 78. Kf2 Kxc7 79. Kxg1 Kd6 80. Nf7+ Ke6 81. Ng5+ Kd5) 78. Kxe4 $15 {[%emt 0:00:34]} Re1+ {[%emt 0:00:05]} 79. Kd5 {[%emt 0:00:23]} Rd1+ {[%emt 0:00:06]} 80. Ke4 {[%emt 0:00:07]} Ne6 {[%emt 0:00:18]} 81. Re7 {[%emt 0:00:40]} Nc5+ {[%emt 0:00:07]} 82. Ke3 {[%emt 0:00:28]} Rd5 {[%emt 0:00:42]} 83. Nf3 {[%emt 0:00:24]} Kc4 {[%emt 0:00:19]} 84. Ke2 {[%emt 0:00:34]} b5 {[%emt 0:00:45]} 85. Re5 {[%emt 0:01:26]} Rd8 {[%emt 0:00:10]} 86. Nd2+ {[%emt 0:00:00]} Kb4 {[%emt 0:00:08]} 87. Re3 {[%emt 0:00:00]} Ka4 {[%emt 0:01:28]} 88. Rc3 $2 {[%emt 0:00:34][%mdl 8192] [#]} (88. Rh3 $15) 88... Rxd2+ $1 {[%emt 0:00:05][%mdl 512]} 89. Kxd2 {[%emt 0:00:28]} (89. Kf1 Nd3) 89... Ne4+ {[%emt 0:00:03] Both players deserved the win here.   Weighted Error Value: White=0.41/Black=0.36.  Loses game:     	White=2     	Black=1      Missed win:     	White=2     	Black=1      Mistake:       	White=8     	Black=9      Inaccurate:     	White=5     	Black=6      OK:         	White=32    	Black=24     Best:        	White=4     	Black=6      Strong:       	White=1     	Black=5      Brilliant:      	---       	Black=1} 0-1

[Event "VIII Open Semana Santa 2024"]
[Site "San Vicente del Raspeig"]
[Date "2024.03.28"]
[Round "2.10"]
[White "Bora, Safal"]
[Black "Priansh Das"]
[Result "1-0"]
[ECO "E68"]
[WhiteElo "2490"]
[BlackElo "2241"]
[Annotator "TA"]
[PlyCount "77"]
[EventDate "2024.03.27"]
[EventType "swiss"]
[EventCountry "ESP"]
[SourceTitle "playchess.com"]
[Source "ChessBase"]
[SourceQuality "1"]
[TimeControl "5400+30"]

{[%evp 21,77,26,27,22,45,43,47,48,80,48,87,15,14,16,59,47,44,31,31,32,33,33,91,81,154,166,167,166,203,206,186,187,207,165,157,13,11,10,31,6,25,37,36,22,75,65,475,477,558,530,858,811,2254,638,882,834,29996,29997]} 1. Nf3 {[%emt 0:00:03]} Nf6 {[%emt 0:20:36]} 2. c4 {[%emt 0:00:22]} g6 {[%emt 0:00:17]} 3. g3 {[%emt 0:00:17]} Bg7 {[%emt 0:00:07]} 4. Bg2 {[%emt 0:00:04]} d6 {[%emt 0:00:44]} 5. d4 {[%emt 0:00:09]} O-O {[%emt 0:00:05]} 6. O-O {[%emt 0:00:09]} Nbd7 {[%emt 0:02:12]} 7. Qc2 {[%emt 0:00:56]} e5 {[%emt 0:00:22]} 8. Rd1 {[%emt 0:00:25]} Qe7 {[%emt 0:02:32]} 9. Nc3 {[%emt 0:00:50]} c6 {[%emt 0:00:32]} 10. e4 {[%emt 0:01:35]} Nb6 {[%emt 0:04:19]} 11. b3 {[%emt 0:04:42]} Bg4 {[%emt 0:01:47]} 12. Be3 {[%emt 0:13:55]} Nbd7 {[%emt 0:04:28]} 13. h3 {[%emt 0:02:13]} Bxf3 {[%emt 0:00:35]} 14. Bxf3 {[%emt 0:00:05] Weiß steht etwas besser.} a5 {[%emt 0:02:59]} 15. Rac1 {[%emt 0:07:42]} Rfe8 {[%emt 0:01:28]} 16. Rd2 {[%emt 0:05:09]} (16. d5 $16) 16... exd4 $11 {[%emt 0:03:01]} 17. Rxd4 {[%emt 0:00:25]} Nc5 {[%emt 0:02:38]} 18. Rcd1 {[%emt 0:01:02]} Rad8 {[%emt 0:03:01]} 19. Qd2 {[%emt 0:09:06][%cal Oe3f4]} h5 {[%emt 0:21:07]} 20. Bf4 {[%emt 0:05:23][%cal Rf4d6]} Ne6 {[%emt 0:05:34]} 21. Rxd6 {[%emt 0:00:38] Und jetzt e5 wäre schön.} Rxd6 {[%emt 0:04:24]} (21... Nh7 $14 22. e5 g5) 22. Bxd6 $16 {[%emt 0:00:59]} Qd7 {[%emt 0:02:29]} ({Günstiger ist} 22... Qd8) 23. e5 {[%emt 0:01:20]} Nh7 {[%emt 0:00:20]} 24. Ne4 {[%emt 0:01:25]} Nef8 {[%emt 0:04:32]} 25. Kg2 {[%emt 0:04:44][%cal Bg1g2,Bg2h1,Bh1h2,Bh2g3][%mdl 32]} Bxe5 {[%emt 0:01:32]} 26. Qxa5 {[%emt 0:00:33]} Qf5 {[%emt 0:05:52]} 27. h4 {[%emt 0:04:03]} g5 {[%emt 0:02:27]} 28. Re1 {[%emt 0:07:00]} (28. hxg5 $1 $16 {Schwarz muss nun Rh1 beachten.} h4 29. Rh1 (29. gxh4 Ng6 $11) 29... hxg3 30. Nxg3) 28... gxh4 $11 {[%emt 0:01:01]} 29. Re3 $36 {[%emt 0:00:34][%mdl 2048] Weiss drückt. Das Brett brennt. Aktives Gegenspiel!} (29. gxh4 $2 Ng6 (29... Qg6+ 30. Kh1 $14) 30. Rh1 Qf4 31. Bxe5 Nxe5 $19) 29... h3+ {[%emt 0:00:58]} 30. Kh1 {[%emt 0:00:25] Bxe5 ist eine echte Drohung.} Ng6 {[%emt 0:00:16]} 31. Qd2 {[%emt 0:11:29]} h4 {[%emt 0:00:58]} 32. Bxe5 {[%emt 0:02:00]} Nxe5 {[%emt 0:00:45] [#]} (32... Rxe5 $11 33. Kh2 hxg3+ 34. fxg3 (34. Nxg3 Qf4 $11) 34... c5) 33. Bd1 $1 $16 {[%emt 0:01:25]} Ng4 $2 {[%emt 0:02:15][%mdl 8192] [#] Danach kann Schwarz die Partie nicht mehr halten.} (33... Nxc4 34. bxc4 Rxe4 35. Bc2) (33... hxg3 $14 34. Nxg3 Qg5) 34. Nd6 $1 $18 {[%emt 0:06:43]} (34. Bxg4 Qxg4 35. f3 Qg7 $16) 34... Nxf2+ {[%emt 0:00:13]} 35. Kh2 {[%emt 0:00:05]} Rd8 {[%emt 0:00:55] ...Nf6 wäre nun fies.} 36. Re8+ {[%emt 0:00:18]} (36. gxh4 $2 Qf4+ 37. Rg3+ Ng4+ 38. Bxg4 Qxd2+ $19) 36... Nf8 {[%emt 0:00:28]} 37. Rxd8 {[%emt 0:00:14]} (37. Rxf8+ $142 Kh7 38. Rxd8 (38. Qh6+ Kxh6 39. Nxf5+ Kg5 $18) 38... hxg3+ 39. Kxg3 Nh1+ 40. Kh2 Qf2+ 41. Qxf2 Nxf2 42. Bf3 (42. Nxb7 Kg6 $18) (42. Bc2+ Kg7 $18)) 37... hxg3+ {[%emt 0:00:10]} 38. Kxg3 {[%emt 0:00:07] Droht Matt per Rxf8+.} Nxd1 {[%emt 0:00:25]} 39. Nxf5 {[%emt 0:00:13] Gewichteter Fehlerwert: Weiß=0.34/Schwarz=0.67.  Verlustzug:     	---       	Schwarz=1     Fehler:       	Weiß=2     	Schwarz=3     Ungenau:       	Weiß=1     	Schwarz=5     OK:         	Weiß=9     	Schwarz=6     Bester:       	Weiß=3     	Schwarz=3     Stark:        	Weiß=2     	---} 1-0